Cogmind - Beta 10.2 @@@ ROGUE MODE // 2021.01.27 @ 18:48:50 Player: CrossedViper Result: Escaped! Performance ------------- Evolutions (9) 4500 Regions Visited (29) 5800 Robots Destroyed (291) 1455 Value Destroyed (12055) 12055 Prototype IDs (86) 1720 Alien Tech Used (9) 1800 Bonus (6128) 6128 TOTAL SCORE: 33458 Bonus ------- High Alert Combat Kills 1944 Aligned with FarCom 300 Met Zhirov 300 Met Warlord at Base 500 MAIN.C Attacked Warlord 500 Win 3000 Friendly Fire -416 Cogmind --------- Core Integrity 735/1850 Matter 108/550 Energy 99/100 System Corruption 22% Temperature Cool (0) Movement Core (50) Location To Epsilon Eridani Parts ------- > --- POWER (4) -------- (None) > --- PROPULSION (6) --- (None) > --- UTILITY (12) ----- Advanced Coolant Injector Advanced Core Analyzer Experimental Armor Integrity Analyzer Advanced Hacking Suite > --- WEAPON (4) ------- (None) > --- INVENTORY (4) ---- Nanoactuators Nanoactuators Terrabomb Z-bomb Delivery System Peak State ------------ > --- POWER ------------ Light Quantum Reactor Improved Quantum Reactor > --- PROPULSION ------- Impulse Thruster Array Impulse Thruster Array Impulse Thruster Array > --- UTILITY ---------- Coolant Network Medium Storage Unit Advanced Target Analyzer Experimental Armor Integrity Analyzer Quantum Capacitor Layered Light Armor Plating Centrium Light Armor Plating Centrium Medium Armor Plating Advanced Hacking Suite System Purifier > --- WEAPON ----------- Improved Potential Cannon Sigix Broadsword > --- INVENTORY -------- High-density Centrium Heavy Treads High-density Centrium Heavy Treads High-density Centrium Heavy Treads Centrium Light Armor Plating Z-bomb Delivery System [Rating: 216] Favorites ----------- Power Light Neutrino Core Engine Light Ion Engine Power Core Light Neutrino Core Reactor Heavy Antimatter Reactor Propulsion Combat Antigrav System Treads Light Treads Leg Aluminum Leg Wheel Wheel Hover Unit Combat Antigrav System Flight Unit Impulse Thruster Array Utility High-capacity Storage Unit Device Makeshift Terrain Scanner Storage High-capacity Storage Unit Processor Improved Target Analyzer Hackware Experimental System Shield Protection Hardened Light Armor Plating Weapon Gauss Rifle Energy Gun Cooled Pulse Rifle Energy Cannon Advanced Beam Cannon Ballistic Gun Gauss Rifle Ballistic Cannon Omega Cannon Launcher Grenade Launcher Slashing Weapon Sigix Broadsword Piercing Weapon Force Lance Build | -11 -10 -10 -9 -9 -9 -8 -8 -7 -7 -7 -7 -6 -6 -5 -5 -5 -5 -4 -4 -4 -4 -4 -3 -3 -3 -2 -2 -2 -1 ------- Run | Scr Mat Min Mat Min Exi Min Mat Fac Low Low Zio Pro Fac Fac Upp Upp Zhi Pro Fac Upp Upp War Pro Res Qua Res Tes Sec Acc Slots Evolved 18 | . . . 2 . . . 2 2 . . . . 2 2 . . . . 2 . . . . 2 . 2 . . 2 Power 3 | . . . . . . . . . . . . . . . . . . . 1 . . . . . . . . . 2 Propulsion 4 | . . . . . . . 1 . . . . . 1 1 . . . . . . . . . 1 . . . . . Utility 10 | . . . 2 . . . 1 1 . . . . 1 1 . . . . 1 . . . . 1 . 2 . . . Weapon 1 | . . . . . . . . 1 . . . . . . . . . . . . . . . . . . . . . Parts Attached 418 | . 11 6 24 13 12 3 22 2 21 4 29 1 4 19 8 5 7 4 15 8 4 16 2 25 21 21 50 10 51 Power 45 | . . 1 4 1 1 . 3 . 1 . 1 . . 4 . . 1 . 3 . . 1 . 2 3 3 7 1 8 Engine 8 | . . 1 3 1 . . 1 . . . . . . 2 . . . . . . . . . . . . . . . Core 11 | . . . 1 . . . 1 . 1 . . . . . . . . . 1 . . . . . . 1 3 . 3 Reactor 26 | . . . . . 1 . 1 . . . 1 . . 2 . . 1 . 2 . . 1 . 2 3 2 4 1 5 Propulsion 96 | . 5 1 5 3 3 1 6 . 3 1 3 . 1 2 . . 1 . 6 . 2 5 . 4 6 6 19 2 11 Treads 44 | . 5 1 5 3 3 1 6 . 3 1 . . . . . . . . . . . . . . . 3 4 2 7 Leg . | . . . . . . . . . . . . . . . . . . . . . . . . . . . . . . Wheel 4 | . . . . . . . . . . . . . . . . . . . . . . . . . . . . . 4 Hover 45 | . . . . . . . . . . . 3 . 1 2 . . 1 . 6 . 2 5 . 4 6 3 12 . . Flight 3 | . . . . . . . . . . . . . . . . . . . . . . . . . . . 3 . . Utility 146 | . 2 1 5 3 3 . 3 1 8 2 17 . 2 10 5 3 5 . 5 3 . 6 2 8 9 6 15 5 17 Device 62 | . . . 1 . 1 . . . 3 1 6 . . 3 3 2 3 . 2 2 . 3 1 6 6 3 4 1 11 Storage 13 | . 2 1 2 . . . 1 . . . 1 . . . . . 1 . 1 . . 1 . . . 1 1 1 . Processor 19 | . . . . 1 1 . 1 . 2 . 5 . . 1 . . . . . . . 1 . . . . 4 1 2 Hackware 10 | . . . . . . . . . . . . . . 1 . . . . 2 1 . . . 1 . . 2 1 2 Protection 42 | . . . 2 2 1 . 1 1 3 1 5 . 2 5 2 1 1 . . . . 1 1 1 3 2 4 1 2 Artifact . | . . . . . . . . . . . . . . . . . . . . . . . . . . . . . . Weapon 131 | . 4 3 10 6 5 2 10 1 9 1 8 1 1 3 3 2 . 4 1 5 2 4 . 11 3 6 9 2 15 Energy Gun 20 | . . . . 1 . . . 1 1 . 2 1 1 1 . . . . . . . 4 . 1 . . 3 1 3 Energy Cannon 23 | . . 1 . 1 . . 4 . 3 . . . . 1 2 . . 1 1 2 . . . . 1 . 2 . 4 Ballistic Gun 44 | . 3 1 7 2 2 2 4 . 3 1 5 . . 1 . 2 . 2 . 1 1 . . 3 . . . . 4 Ballistic Cannon 1 | . . . . . . . . . . . . . . . . . . . . . . . . . . . 1 . . Launcher 28 | . 1 1 3 2 3 . 2 . 1 . 1 . . . 1 . . 1 . 2 1 . . 3 1 . . 1 4 Special Weapon . | . . . . . . . . . . . . . . . . . . . . . . . . . . . . . . Impact Weapon . | . . . . . . . . . . . . . . . . . . . . . . . . . . . . . . Slashing Weapon 10 | . . . . . . . . . . . . . . . . . . . . . . . . . 1 6 3 . . Piercing Weapon 5 | . . . . . . . . . 1 . . . . . . . . . . . . . . 4 . . . . . Special Melee Weapon . | . . . . . . . . . . . . . . . . . . . . . . . . . . . . . . Unidentified Prototypes 59 | . . . 2 . 2 . 2 1 2 . 11 . . 3 . . 3 . . . . 9 . 2 3 3 10 6 . Parts Lost 128 | . . 1 1 7 2 . 2 . 12 1 6 . . 4 6 . . 1 . 3 . . 1 9 19 5 8 11 29 Power 18 | . . . 1 1 . . . . 1 . . . . 1 . . . . . . . . . 2 3 . 2 2 5 Propulsion 36 | . . 1 . 3 . . 1 . 4 1 1 . . . . . . . . . . . . 2 7 . 1 5 10 Utility 42 | . . . . 2 1 . . . 3 . 2 . . 1 3 . . . . . . . 1 1 9 4 1 4 10 Weapon 32 | . . . . 1 1 . 1 . 4 . 3 . . 2 3 . . 1 . 3 . . . 4 . 1 4 . 4 Highest Loss Streak 10 | . . 1 1 7 2 . 1 . 10 1 5 . . 1 4 . . 1 . 3 . . 1 4 9 2 3 9 10 Average Slot Usage (%) 87 | . 98 99 88 94 80 88 97 90 92 92 91 86 91 92 85 100 99 96 97 98 85 92 95 87 83 55 63 55 64 Engine 2 | . 14 14 7 8 . . 2 7 . . . . . . . . . . . . . . . . . . . . . Core 2 | . . . 3 . . . . . 6 7 6 . . . . . . . . . . . . . . 3 1 . 3 Reactor 2 | . . . . . 1 11 6 . . . . 7 6 4 5 5 5 5 7 10 10 8 5 5 5 3 5 5 3 Treads 14 | . 25 27 22 21 22 22 26 23 19 14 13 . . . . . . . . . . . . . . 8 6 1 8 Hover 6 | . . . . . . . . . . . 1 21 25 26 27 27 26 27 24 25 25 24 25 27 21 3 4 . . Device 4 | . . . . . . . . . 5 6 . 7 6 8 5 9 11 11 6 5 5 3 1 4 6 8 10 3 14 Storage 14 | . 27 28 22 22 22 22 17 15 14 14 14 14 12 11 11 11 11 11 9 10 10 10 10 9 8 1 4 3 . Processor 13 | . . . . 2 11 11 17 15 22 21 23 21 18 16 16 16 16 16 15 15 15 15 15 9 9 6 7 18 18 Hackware 2 | . . . . . . . . . . . . . . 2 5 5 5 5 13 15 15 15 15 17 13 6 5 3 . Protection 4 | . . . 11 16 2 . 7 10 1 . 3 . 4 3 4 1 . . . . . 1 3 3 2 4 8 7 1 Energy Gun 1 | . 9 . . 2 4 . . 2 . . 4 1 5 3 . . . . . . . 7 20 3 . . . 1 2 Energy Cannon 3 | . . 1 . 1 . . 3 7 11 7 2 . . 1 7 11 11 8 9 8 . . . . . . . . 2 Ballistic Gun 10 | . 14 18 20 17 15 22 14 7 6 19 20 14 12 11 . 11 11 10 10 9 5 6 . 3 . . . . 3 Naked Turns . | . . . . . . . . . . . . . . . . . . . . . . . . . . . . . . Heaviest Build 142 | 12 43 58 87 89 82 82 87 91 94 92 96 99 102 134 98 105 109 110 120 123 103 142 142 142 127 71 75 76 106 Greatest Support 270 | 20 40 40 40 42 44 44 78 60 71 51 90 90 112 134 134 134 137 137 140 130 135 145 145 175 175 270 270 81 225 Greatest Overweight (x) 10 | . 1 2 2 2 1 1 1 1 1 1 3 1 . 3 . 1 . . 1 . . . . . 2 . 3 . 10 Average Overweight (x) . | . . 1 1 1 1 1 1 1 1 1 . . . . . . . . . . . . . . . . . . 1 Largest Inventory Capacity 26 | . 16 18 26 20 20 20 20 20 20 20 20 20 20 20 20 20 20 20 20 20 20 20 20 20 20 8 8 8 4 Average Capacity 17 | . 15 17 19 20 20 20 19 20 20 20 20 20 20 20 20 20 20 20 19 20 20 20 20 20 19 5 8 7 4 Most Carried 20 | . 16 16 20 20 20 20 20 20 20 20 20 19 18 20 20 18 20 20 20 20 20 20 20 19 20 6 8 8 4 Average Carried 15 | . 11 15 17 19 18 19 19 19 15 17 19 17 17 17 17 17 19 19 18 19 19 19 19 15 15 3 6 6 3 Final Capacity 20 | 6 16 18 20 20 20 20 20 20 20 20 20 20 20 20 20 20 20 20 20 20 20 20 20 20 4 8 8 4 4 Final Carried 20 | 6 16 16 20 20 20 19 20 20 14 20 18 19 18 17 19 18 20 19 20 20 20 20 19 12 4 4 6 4 4 Class Distribution -------------------- 35% | Hauler-Mutant 19% | Scavenger-Mutant 15% | Scavenger-Gunner 9% | Hacker-Mutant 9% | Mutant 3% | Scavenger-Skirmisher Dominant Class ---------------- Mutant | -10/Materials Mutant | -10/Mines Hauler-Mutant | -9/Materials Hauler-Mutant | -9/Mines Hauler-Mutant | -9/Exiles Hauler-Mutant | -8/Mines Hauler-Mutant | -8/Materials Scavenger-Mutant | -7/Factory Hauler-Mutant | -7/Lower Caves Scavenger-Skirmisher | -7/Lower Caves Scavenger-Gunner | -7/Zion Scavenger-Mutant | -6/Proximity Caves Scavenger-Gunner | -6/Factory Scavenger-Gunner | -5/Factory Scavenger-Mutant | -5/Upper Caves Scavenger-Mutant | -5/Upper Caves Scavenger-Mutant | -5/Zhirov Scavenger-Gunner | -4/Proximity Caves Hacker-Mutant | -4/Factory Hacker-Gunner | -4/Upper Caves Hacker-Mutant | -4/Upper Caves Hacker-Mutant | -4/Warlord Hacker-Mutant | -3/Proximity Caves Wizard-Mutant | -3/Research Hacker-Mutant | -3/Quarantine Hacker-Mutant | -2/Research Scavenger-Mutant | -2/Testing Scavenger-Mutant | -2/Section 7 Scavenger-Gunner | -1/Access Resources | -11 -10 -10 -9 -9 -9 -8 -8 -7 -7 -7 -7 -6 -6 -5 -5 -5 -5 -4 -4 -4 -4 -4 -3 -3 -3 -2 -2 -2 -1 ----------- Run | Scr Mat Min Mat Min Exi Min Mat Fac Low Low Zio Pro Fac Fac Upp Upp Zhi Pro Fac Upp Upp War Pro Res Qua Res Tes Sec Acc Matter Collected 9987 | 200 183 133 766 401 490 318 653 41 337 111 279 391 172 761 200 87 90 74 151 304 417 . 21 545 564 316 525 . 1457 Remotely . | . . . . . . . . . . . . . . . . . . . . . . . . . . . . . . Salvage Created 12149 | . 387 135 1313 385 256 290 1281 65 470 156 175 204 231 1144 435 69 98 360 113 294 181 . . 640 . 957 1001 . 1509 Parts 643 | . 28 19 93 17 59 18 56 3 19 6 12 7 13 50 14 2 1 12 5 6 4 . . 35 . 47 56 . 61 Haulers Intercepted 11 | . 1 . 4 . . . 3 . . . . . . 1 . . . . 1 . . . . . . . . . 1 Recyclers Shooed 8 | . . 1 2 . . . 1 . . . . . . 1 . . . . 1 . . . . 1 . . . . 1 Parts Field Recycled . | . . . . . . . . . . . . . . . . . . . . . . . . . . . . . . Retrieved Matter . | . . . . . . . . . . . . . . . . . . . . . . . . . . . . . . Parts Self-Destructed 65 | . . . . . . . . . 28 4 3 1 . . 2 2 1 8 . 4 2 10 . . . . . . . Prevented 43 | . . . . . . . . . 1 . . 7 . . 9 2 . 1 . . . 23 . . . . . . . Kills | -11 -10 -10 -9 -9 -9 -8 -8 -7 -7 -7 -7 -6 -6 -5 -5 -5 -5 -4 -4 -4 -4 -4 -3 -3 -3 -2 -2 -2 -1 ------- Run | Scr Mat Min Mat Min Exi Min Mat Fac Low Low Zio Pro Fac Fac Upp Upp Zhi Pro Fac Upp Upp War Pro Res Qua Res Tes Sec Acc Combat Hostiles Destroyed 253 | . 11 8 29 27 7 7 20 . 16 3 2 3 5 14 9 1 . 8 . 7 4 . . 14 . 11 13 . 34 Melee 22 | . . . . . . . . . . . . . . . . . . . . . . . . . . 11 11 . . Guns 97 | . 9 2 15 7 . 7 14 . 2 3 2 2 3 10 . 1 . 3 . 2 . . . 4 . . . . 11 Cannons 26 | . . . . . . . 3 . 7 . . . . 2 3 . . 2 . 1 . . . . . . . . 8 AOE 101 | . 2 6 14 20 7 . 3 . 7 . . . 2 . 4 . . 3 . 4 4 . . 10 . . . . 15 Classes Destroyed 21 | . 5 1 4 3 1 1 . . 1 . . . 1 . . . . . . . . . . . . 1 1 . 2 Worker 15 | . 2 . 3 1 . . 1 . . . . . . 2 . . . . 1 . . . . 1 . . . . 4 Builder 6 | . . . 1 . . . . . . . . . . 2 . . . . . . . . . 2 . . . . 1 Tunneler 6 | . . . 1 1 . 1 1 . . . . . 1 . . . . . . . . . . 1 . . . . . Hauler 11 | . 1 . 4 . . . 3 . . . . . . 1 . . . . 1 . . . . . . . . . 1 Recycler 8 | . . . 4 . . . . . . . . . . . . . . . . . . . . 2 . 1 . . 1 Mechanic 1 | . . . . . . . . . . . . . . . . . . . . . . . . . . . . . 1 Operator 2 | . 1 . . . . . . . . . . . . . . . . . . . . . . . . . 1 . . Watcher 5 | . . . 2 . . . . 2 . . . . 1 . . . . . . . . . . . . . . . . Swarmer 68 | . 5 6 11 . . 3 . . 8 3 . . 3 . 2 . . 2 . 4 4 . . 9 . . . . 8 Saboteur 1 | . . . . . . . . . . . . . . . . . . . . . . . . . . . . . 1 Grunt 82 | . 6 . 14 4 . 2 15 . 1 . . 3 . 7 5 1 . 4 . 3 . . . 4 . 5 . . 8 Brawler 4 | . . . . . . . . . 2 . . . . . . . . . . . . . . . . 1 . . 1 Duelist 4 | . . . . 1 . . . . 3 . . . . . . . . . . . . . . . . . . . . Sentry 26 | . . 2 4 . . . 5 . 2 . . . 1 3 1 . . 1 . . . . . . . 1 . . 6 Demolisher 3 | . . . . 2 . . . . . . . . . 1 . . . . . . . . . . . . . . . Hunter 11 | . . . . . . 2 . . . . . . . 1 1 . . . . . . . . . . . 4 . 3 Programmer 20 | . . . . . . . . . . . . . 1 2 . . . 1 . . . . . 1 . 2 6 . 7 Striker 4 | . . . . . . . . . . . . . . . . . . . . . . . . . . 2 2 . . Alpha 7 1 | . . . . . . . . . . . . . . . . . . . . . . . . . . . 1 . . Zionite 7 | . . . . . 7 . . . . . . . . . . . . . . . . . . . . . . . . Packrat 2 | . . . . . . . . . . . . . . . . . . . . 2 . . . . . . . . . Assembled 27 | . . . . 20 7 . . . . . . . . . . . . . . . . . . . . . . . . Thug 1 | . . . . . . . . . . . 1 . . . . . . . . . . . . . . . . . . Savage 1 | . . . . . . . . . . 1 . . . . . . . . . . . . . . . . . . . Best Kill Streak 19 | . 4 3 8 19 7 3 4 1 5 3 1 3 3 10 5 1 . 3 1 4 4 . . 5 . 3 3 . 13 Combat Bots Only 19 | . 4 3 7 19 7 3 4 . 5 3 1 3 3 7 5 1 . 3 . 4 4 . . 5 . 3 3 . 10 Max Kills in Single Turn 6 | . 2 3 4 6 3 1 3 1 2 2 1 1 1 2 4 1 . 3 1 2 4 . . 5 . 1 1 . 5 Gunslinging 1 | . . . . . . . . . . 1 . . . . . . . . . . . . . . . . . . . Exploded 6 | . 1 3 4 6 3 . 3 . 2 . . . 1 . 4 . . 3 . 2 4 . . 5 . . . . 5 Melee 1 | . . . . . . . . . . . . . . . . . . . . . . . . . . 1 1 . . Uniques/NPCs Destroyed 5 | . . . . . 4 . . . . . 1 . . . . . . . . . . . . . . . . . . 8R-AWN (-9/Exiles) EX-HEX (-9/Exiles) EX-BIN (-9/Exiles) EX-DEC (-9/Exiles) 99-TNT (-7/Zion) Combat | -11 -10 -10 -9 -9 -9 -8 -8 -7 -7 -7 -7 -6 -6 -5 -5 -5 -5 -4 -4 -4 -4 -4 -3 -3 -3 -2 -2 -2 -1 -------- Run | Scr Mat Min Mat Min Exi Min Mat Fac Low Low Zio Pro Fac Fac Upp Upp Zhi Pro Fac Upp Upp War Pro Res Qua Res Tes Sec Acc Damage Taken 36090 | . 221 271 786 1397 554 531 1381 61 1969 240 1005 56 219 1206 808 207 . 221 225 643 42 . 566 2283 3491 3066 3876 4055 6710 Core 4679 | . 70 20 105 165 . 64 141 10 194 66 133 18 29 57 94 93 . 95 27 98 . . 45 233 399 20 281 1107 1115 Absorbed by Shields . | . . . . . . . . . . . . . . . . . . . . . . . . . . . . . . Reduced by Siege Mode 442 | . . . . . . . . . . . . . . . . . . . . . . . . . . 210 92 . 140 Core Remaining (%) 58 | 100 . 64 . . . 16 74 . . . . 39 96 . . . . 66 . . . . 85 . 44 . . 17 39 Volleys Fired 648 | . 28 9 88 42 53 31 82 11 27 9 15 6 12 36 20 5 3 12 9 13 10 2 . 21 1 . 17 1 85 Largest 4 | . 2 2 2 2 2 2 2 3 3 3 4 2 2 4 3 3 1 4 3 4 2 1 . 2 1 . 1 1 4 Hottest 265 | . 60 46 46 79 46 46 136 116 136 79 104 56 56 202 150 131 75 229 154 236 60 45 . 120 30 . 75 30 265 Shots Fired 1362 | . 50 15 165 74 99 62 162 27 45 19 65 24 35 102 37 13 3 33 13 34 18 2 . 28 1 . 16 1 219 Gun 1092 | . 44 12 156 57 92 62 128 16 15 19 65 24 35 97 18 10 . 18 4 22 17 2 . 24 . . 16 . 139 Cannon 208 | . . . . 7 . . 32 11 23 . . . . 5 18 3 3 13 9 10 . . . . . . . . 74 Launcher 62 | . 6 3 9 10 7 . 2 . 7 . . . . . 1 . . 2 . 2 1 . . 4 1 . . 1 6 Special . | . . . . . . . . . . . . . . . . . . . . . . . . . . . . . . Kinetic 891 | . 30 12 156 50 92 62 128 11 14 19 37 12 24 72 14 10 . 18 4 22 17 . . . . . . . 87 Thermal 199 | . . . . . . . 32 16 23 . 8 . . . . . . 4 9 7 . . . . . . . . 100 Explosive 62 | . 6 3 9 10 7 . 2 . 7 . . . . . 1 . . 2 . 2 1 . . 4 1 . . 1 6 Electromagnetic 184 | . 14 . . 14 . . . . 1 . 20 12 11 30 22 3 3 9 . 3 . . . . . . 16 . 26 Entropic 26 | . . . . . . . . . . . . . . . . . . . . . . 2 . 24 . . . . . Robot Hit Streak 24 | . 10 16 15 15 18 11 24 11 20 8 11 13 16 16 8 7 1 21 24 11 10 . . 6 . . 8 5 20 Robot Miss Streak 6 | . 2 1 5 4 2 2 3 2 3 1 2 2 3 3 5 2 2 3 1 5 1 . . 5 . . 1 . 6 Penetration Max 1 | . . . . . . . . . . . . . . 1 . 1 . . . 1 . . . . . . . . 1 Secondary Targets 10 | . 2 . 1 . . 2 1 . . 1 . . . . . . . . . 2 . . . . . . . . 1 Max Gunslinging Chain 1 | . 1 . 1 . . 1 1 . . 1 . . . . . . . . . 1 . . . . . . . . 1 Capacitor 16 | . . . . . . . . . . . . . . . . . . . . . . . . . . . 16 . . Autonomous 63 | . . . . . . . . . 1 . 20 12 11 19 . . . . . . . . . . . . . . . Shots Hit Robots 1038 | . 34 13 115 56 75 43 121 17 31 13 51 21 28 71 22 10 1 18 8 15 13 . . 24 2 54 48 1 133 Core Hits 598 | . 23 11 78 64 33 14 49 6 25 6 22 8 12 37 15 4 2 15 3 12 7 . . 35 . 16 20 3 78 Critical Hits 82 | . . 1 1 1 . 3 11 1 3 1 3 2 3 16 1 . . . 1 . 1 . . 1 . 18 8 . 6 Critical Kills 25 | . . . . 1 . . 5 . 3 1 . 1 1 4 . . . . . . 1 . . . . 5 2 . 1 Critical Parts Destroyed 52 | . . 1 1 . . 3 6 1 . . 1 1 1 11 1 . . . 1 . . . . 1 . 13 5 . 5 Melee Attacks 142 | . . . . . . . . . 1 . . . . . . . . . . . . . . 3 27 66 45 . . Impact . | . . . . . . . . . . . . . . . . . . . . . . . . . . . . . . Slashing 116 | . . . . . . . . . . . . . . . . . . . . . . . . . 5 66 45 . . Piercing 26 | . . . . . . . . . 1 . . . . . . . . . . . . . . 3 22 . . . . Sneak Attacks 5 | . . . . . . . . . . . . . . . . . . . . . . . . 1 . 3 1 . . Combat Hostiles . | . . . . . . . . . . . . . . . . . . . . . . . . . . . . . . Follow-up Attacks 10 | . . . . . . . . . . . . . . . . . . . . . . . . . 1 9 . . . Damage Inflicted 41537 | . 890 538 2334 2176 1655 534 2720 329 1672 233 517 436 761 1793 1152 259 47 1027 273 1435 903 . . 2818 103 4353 3071 25 9483 Guns 14655 | . 374 196 1441 635 1085 530 1601 206 225 233 517 436 514 1696 342 155 . 229 42 224 271 . . 1129 . . 300 . 2274 Cannons 4181 | . . . . 105 . . 472 123 328 . . . . 97 313 104 47 230 231 170 . . . . . . . . 1961 Explosions 15181 | . 516 340 884 1434 570 . 617 . 1119 . . . 247 . 497 . . 568 . 1041 632 . . 1475 . . . . 5241 Melee 7441 | . . . . . . . . . . . . . . . . . . . . . . . . 214 103 4353 2771 . . Ramming 79 | . . 2 9 2 . 4 30 . . . . . . . . . . . . . . . . . . . . 25 7 Kinetic 10429 | . 203 196 1441 577 1085 530 1601 107 199 233 302 168 282 1115 244 155 . 229 42 224 271 . . . . . . . 1225 Thermal 5187 | . 197 . . . . . 1053 222 328 . 97 . 247 . . . . 77 231 101 . . . . . . . . 2634 Explosive 14051 | . 319 340 884 1434 570 . 36 . 1119 . . . . . 497 . . 568 . 1041 632 . . 1475 . . . . 5136 Electromagnetic 3221 | . 171 . . 163 . . . . 26 . 118 268 232 678 411 104 47 153 . 69 . . . . . . 300 . 481 Impact . | . . . . . . . . . . . . . . . . . . . . . . . . . . . . . . Slashing 7190 | . . . . . . . . . . . . . . . . . . . . . . . . . 66 4353 2771 . . Piercing 251 | . . . . . . . . . . . . . . . . . . . . . . . . 214 37 . . . . Entropic 1129 | . . . . . . . . . . . . . . . . . . . . . . . . 1129 . . . . . Highest Corruption 22 | . . . . . . . . . . . 4 . . 9 9 9 . . . . . . . 6 9 15 12 10 22 Average Corruption 7 | . . . . . . . . . . . 4 . . 7 9 6 . . . . . . . 4 6 12 6 4 13 Corruption Purged 33 | . . . . . . . . . . . . . . . . 9 . . . . . . . . . 3 16 5 . Effects 194 | . . . . . . . . . . . 7 . . 14 15 12 . . . . . . . 5 23 9 24 9 76 Message Errors 31 | . . . . . . . . . . . 3 . . 2 3 4 . . . . . . . 2 4 1 4 4 4 Matter Fused 34 | . . . . . . . . . . . 2 . . 3 2 1 . . . . . . . . 6 1 8 1 10 Heat Flow Errors 17 | . . . . . . . . . . . 1 . . . 1 2 . . . . . . . . 2 2 2 . 7 Energy Discharges 18 | . . . . . . . . . . . 1 . . . 2 2 . . . . . . . 1 4 2 3 1 2 Parts Rejected 5 | . . . . . . . . . . . . . . . . . . . . . . . . . 1 . 2 . 2 Data Loss (minor) 21 | . . . . . . . . . . . . . . . 1 3 . . . . . . . 2 4 . 3 2 6 Data Loss (major) 7 | . . . . . . . . . . . . . . . 2 . . . . . . . . . 2 . . . 3 Misfires 4 | . . . . . . . . . . . . . . 1 1 . . . . . . . . . . . . . 2 Misdirections 13 | . . . . . . . . . . . . . . . . . . . . . . . . . . . 1 1 11 Targeting Errors 35 | . . . . . . . . . . . . . . 7 2 . . . . . . . . . . 3 . . 23 Weapon Failures 9 | . . . . . . . . . . . . . . 1 1 . . . . . . . . . . . 1 . 6 Overload Shots . | . . . . . . . . . . . . . . . . . . . . . . . . . . . . . . Overflow Damage 2226 | . 2 . 5 68 10 . 102 . 51 . . . 19 . . 13 . 60 . 138 96 . . 186 . 598 124 . 754 Projectiles 188 | . . . . . . . 10 . 8 . . . . . . 13 . 20 . 25 . . . . . . . . 112 Explosions 1152 | . 2 . 5 68 10 . 87 . 43 . . . 19 . . . . 40 . 113 96 . . 27 . . . . 642 Melee 886 | . . . . . . . 5 . . . . . . . . . . . . . . . . 159 . 598 124 . . Knockbacks . | . . . . . . . . . . . . . . . . . . . . . . . . . . . . . . Impact . | . . . . . . . . . . . . . . . . . . . . . . . . . . . . . . Kinetic . | . . . . . . . . . . . . . . . . . . . . . . . . . . . . . . Secondary . | . . . . . . . . . . . . . . . . . . . . . . . . . . . . . . Self-Inflicted Damage 814 | . 38 . 94 53 . . . . 327 . . . . . . . . . . 34 . . . 97 78 . . 11 82 Shots 19 | . 1 . 4 2 . . . . 6 . . . . . . . . . . 1 . . . 2 2 . . . 1 Rammed 16 | . 1 2 1 1 . 1 2 . . . . . . . . . . . . . . . . . . . . 5 3 Targets Rammed 16 | . 1 2 1 1 . 1 2 . . . . . . . . . . . . . . . . . . . . 5 3 Kicked . | . . . . . . . . . . . . . . . . . . . . . . . . . . . . . . Crushed . | . . . . . . . . . . . . . . . . . . . . . . . . . . . . . . Highest Temperature 402 | . 46 13 81 146 . . 323 180 402 . 189 45 24 311 345 318 4 18 212 179 4 3 . 15 169 99 190 . 197 Average Temperature 73 | . 20 5 24 43 . . 88 64 130 . 36 20 10 136 129 69 1 9 70 71 1 3 . 7 57 52 76 . 79 Received Heat Transfer 3523 | . 36 63 264 145 . 63 621 18 129 . 9 27 . 225 204 99 . 36 . 36 . . 9 225 225 351 198 180 360 Effects 9 | . . . . . . . . . . . . . . 2 2 5 . . . . . . . . . . . . . Shutdowns 2 | . . . . . . . . . . . . . . . 1 1 . . . . . . . . . . . . . Energy Bleed 4 | . . . . . . . . . . . . . . 1 1 2 . . . . . . . . . . . . . Interference 2 | . . . . . . . . . . . . . . . . 2 . . . . . . . . . . . . . Damage (minor) 1 | . . . . . . . . . . . . . . 1 . . . . . . . . . . . . . . . Siege Activations 9 | . . . . . . . . . . . . . . . . . . . . . . . . . . 2 2 . 5 Total Turns 282 | . . . . . . . . . . . . . . . . . . . . . . . . . . 136 74 . 72 Longest Duration 72 | . . . . . . . . . . . . . . . . . . . . . . . . . . 72 60 . 20 Robots Corrupted 8 | . . . . . . . . . . . . 1 . 2 2 . . . . . . . . . . . 2 . 1 Combat Hostiles 7 | . . . . . . . . . . . . 1 . 2 2 . . . . . . . . . . . 2 . . Parts Fried 15 | . . . . . . . . . . . 2 . . 5 2 . . . . . . . . . . . 3 . 3 Impact Corruptions 1 | . . . . . . . 1 . . . . . . . . . . . . . . . . . . . . . . Robots Melted 1 | . . . . . . . . . . . . . . . . . . . . . . . . . . . . . 1 Combat Hostiles . | . . . . . . . . . . . . . . . . . . . . . . . . . . . . . . Parts Melted 13 | . . . . . . . . . 2 . . . . . . . . . . . . . . . . . 4 . 7 Heat Transferred 5671 | . 250 . . . . . 1201 407 592 . 101 . 200 . . . . 100 350 150 . . . . . . . . 2320 Parts Sabotaged . | . . . . . . . . . . . . . . . . . . . . . . . . . . . . . . Parts Stolen . | . . . . . . . . . . . . . . . . . . . . . . . . . . . . . . Parts Stripped . | . . . . . . . . . . . . . . . . . . . . . . . . . . . . . . Power Chain Reactions 7 | . 3 . 1 . . . . . . . . . 2 . . . . . . . . . . . . . . . 1 Missiles Intercepted . | . . . . . . . . . . . . . . . . . . . . . . . . . . . . . . Alert | -11 -10 -10 -9 -9 -9 -8 -8 -7 -7 -7 -7 -6 -6 -5 -5 -5 -5 -4 -4 -4 -4 -4 -3 -3 -3 -2 -2 -2 -1 ------- Run | Scr Mat Min Mat Min Exi Min Mat Fac Low Low Zio Pro Fac Fac Upp Upp Zhi Pro Fac Upp Upp War Pro Res Qua Res Tes Sec Acc Peak Influence 1512 | . 306 140 561 311 . 230 469 277 . . . . 223 429 . . . . 531 . . . . 939 799 617 661 847 1512 Initial 475 | . . 47 . 201 . . 11 203 . . . . 72 109 . . . . 65 . . . . 74 432 332 346 371 475 Average 342 | . 170 61 322 117 . 69 246 244 . . . . 137 233 . . . . 218 . . . . 523 629 382 465 676 850 Maximum Alert Level 4 | . 1 . 2 1 . 1 2 1 . . . . 1 2 . . . . 2 . . . . 3 3 2 2 3 4 Low Security (%) 35 | . 69 100 26 72 . 87 21 . . . . . 76 47 . . . . 65 . . . . 30 . . . . . Level 1 28 | . 30 . 21 27 . 12 76 100 . . . . 23 47 . . . . 10 . . . . 10 . 67 21 10 . Level 2 24 | . . . 51 . . . 2 . . . . . . 5 . . . . 24 . . . . 17 73 32 78 35 29 Level 3 9 | . . . . . . . . . . . . . . . . . . . . . . . . 41 26 . . 54 49 Level 4 2 | . . . . . . . . . . . . . . . . . . . . . . . . . . . . . 21 Level 5 . | . . . . . . . . . . . . . . . . . . . . . . . . . . . . . . High Security . | . . . . . . . . . . . . . . . . . . . . . . . . . . . . . . Max Security . | . . . . . . . . . . . . . . . . . . . . . . . . . . . . . . Squads Dispatched 54 | . 2 . 3 1 . 1 2 1 . . . . . 5 . . . . . . . . 1 6 3 1 11 4 13 Investigation 9 | . 1 . 2 1 . . 1 . . . . . . 1 . . . . . . . . . . 1 . 1 . 1 Extermination 9 | . . . . . . . . . . . . . . 2 . . . . . . . . . . . . 3 1 3 Reinforcement 21 | . 1 . 1 . . 1 1 . . . . . . 2 . . . . . . . . . 4 2 1 4 2 2 Assault 5 | . . . . . . . . . . . . . . . . . . . . . . . 1 . . . . 1 3 Garrison 10 | . . . . . . . . 1 . . . . . . . . . . . . . . . 2 . . 3 . 4 Intercept . | . . . . . . . . . . . . . . . . . . . . . . . . . . . . . . Construction Impeded 4 | . . . . . . 1 . . . . . . . . . . . . . . . . . 1 . . . . 2 Haulers Reinforced 2 | . . . . . . . . . . . . . . 2 . . . . . . . . . . . . . . . Stealth | -11 -10 -10 -9 -9 -9 -8 -8 -7 -7 -7 -7 -6 -6 -5 -5 -5 -5 -4 -4 -4 -4 -4 -3 -3 -3 -2 -2 -2 -1 --------- Run | Scr Mat Min Mat Min Exi Min Mat Fac Low Low Zio Pro Fac Fac Upp Upp Zhi Pro Fac Upp Upp War Pro Res Qua Res Tes Sec Acc Distress Signals 40 | . 2 . 5 . . . 7 . . . . . . 1 . . . . . . . 1 . 4 . 6 5 7 2 Communications Jammed . | . . . . . . . . . . . . . . . . . . . . . . . . . . . . . . Distress Signals . | . . . . . . . . . . . . . . . . . . . . . . . . . . . . . . Times Spotted 572 | . 20 8 44 30 32 9 42 4 16 3 3 5 5 17 9 3 . 5 5 14 6 . 14 55 34 38 42 58 51 Peak Tracking Total 22 | . 4 3 7 12 9 2 6 1 7 3 1 3 2 6 4 2 . 3 4 13 5 . 12 16 11 8 12 22 13 Tactical Retreats 77 | . 6 . 3 2 5 2 1 . . . 1 2 . . 1 1 . 1 . 2 2 . 3 9 7 7 5 12 5 Traps | -11 -10 -10 -9 -9 -9 -8 -8 -7 -7 -7 -7 -6 -6 -5 -5 -5 -5 -4 -4 -4 -4 -4 -3 -3 -3 -2 -2 -2 -1 ------- Run | Scr Mat Min Mat Min Exi Min Mat Fac Low Low Zio Pro Fac Fac Upp Upp Zhi Pro Fac Upp Upp War Pro Res Qua Res Tes Sec Acc Traps Triggered 15 | . 4 . 3 . . . . . . . . . . 1 . . . . 1 . . . . 2 1 . 1 . 2 Indirectly . | . . . . . . . . . . . . . . . . . . . . . . . . . . . . . . Trap Hack Attempts . | . . . . . . . . . . . . . . . . . . . . . . . . . . . . . . Triggered . | . . . . . . . . . . . . . . . . . . . . . . . . . . . . . . Disarmed . | . . . . . . . . . . . . . . . . . . . . . . . . . . . . . . Reprogrammed . | . . . . . . . . . . . . . . . . . . . . . . . . . . . . . . Reused . | . . . . . . . . . . . . . . . . . . . . . . . . . . . . . . Traps Extracted . | . . . . . . . . . . . . . . . . . . . . . . . . . . . . . . Installed . | . . . . . . . . . . . . . . . . . . . . . . . . . . . . . . Triggered 14 | . . . . . . . . . 3 . . 2 . . . . . . . . . 9 . . . . . . . Machines | -11 -10 -10 -9 -9 -9 -8 -8 -7 -7 -7 -7 -6 -6 -5 -5 -5 -5 -4 -4 -4 -4 -4 -3 -3 -3 -2 -2 -2 -1 ---------- Run | Scr Mat Min Mat Min Exi Min Mat Fac Low Low Zio Pro Fac Fac Upp Upp Zhi Pro Fac Upp Upp War Pro Res Qua Res Tes Sec Acc Machines Disabled 38 | . 3 . 2 1 6 1 6 . 1 . 1 . . . . . . . 1 1 . 1 . 1 7 . 3 . 3 Max in Single Turn 6 | . 1 . 2 1 1 1 6 . 1 . 1 . . . . . . . 1 1 . 1 . 1 1 . 1 . 1 Garrison Access 3 | . . . . . . . . . . . . . . . . . . . . . . . . . . . 1 . 2 Energy Cycler 1 | . . . . . . . . . . . . . . . . . . . . . . . . . . . . . 1 Machines Sabotaged . | . . . . . . . . . . . . . . . . . . . . . . . . . . . . . . Garrisons Compromised . | . . . . . . . . . . . . . . . . . . . . . . . . . . . . . . Overloaded Fab Kills . | . . . . . . . . . . . . . . . . . . . . . . . . . . . . . . Fab Network Shutdowns 1 | . . . . . . . . . . . . . . . . . . . 1 . . . . . . . . . . Hacking | -11 -10 -10 -9 -9 -9 -8 -8 -7 -7 -7 -7 -6 -6 -5 -5 -5 -5 -4 -4 -4 -4 -4 -3 -3 -3 -2 -2 -2 -1 --------- Run | Scr Mat Min Mat Min Exi Min Mat Fac Low Low Zio Pro Fac Fac Upp Upp Zhi Pro Fac Upp Upp War Pro Res Qua Res Tes Sec Acc Machines Accessed 72 | . 3 1 3 1 2 . 6 3 2 1 . . 1 2 . 1 4 . 5 . . 6 . 4 8 . 8 6 5 Terminals 37 | . 3 . 2 . . . 3 3 . . . . . 1 . 1 . . 3 . . . . 3 5 . 5 6 2 Fabricators 3 | . . . . . . . . . . . . . . . . . . . 1 . . . . . . . 2 . . Repair Stations 4 | . . . . . . . 1 . . . . . . . . . . . 1 . . . . . 2 . . . . Recycling Units . | . . . . . . . . . . . . . . . . . . . . . . . . . . . . . . Scanalyzers 6 | . . . 1 . . . 2 . . . . . . 1 . . . . . . . . . 1 1 . . . . Garrison Access 5 | . . . . . . . . . . . . . 1 . . . . . . . . . . . . . 1 . 3 Total Hacks 215 | . 8 1 7 1 2 . 15 4 2 1 . . 2 13 . 1 17 . 41 . . 16 . 11 33 . 20 11 9 Successful 136 | . 5 1 4 1 2 . 10 2 2 1 . . . 8 . 1 17 . 22 . . 16 . 8 17 . 10 9 . Failed 79 | . 3 . 3 . . . 5 2 . . . . 2 5 . . . . 19 . . . . 3 16 . 10 2 9 Catastrophic 12 | . . . . . . . 1 1 . . . . . 1 . . . . 5 . . . . . 1 . 1 . 2 Database Lockouts . | . . . . . . . . . . . . . . . . . . . . . . . . . . . . . . Manual 73 | . 6 . 5 . 1 . 6 3 . . 1 . . 6 . . . . 19 . . . . 4 9 . 9 4 . Terminals 114 | . 8 . 5 . . . 6 4 . . . . . 6 . 1 . . 25 . . . . 9 20 . 14 11 5 Fabricators 15 | . . . . . . . . . . . . . . . . . . . 10 . . . . . . . 5 . . Repair Stations 18 | . . . . . . . 2 . . . . . . . . . . . 6 . . . . . 10 . . . . Recycling Units . | . . . . . . . . . . . . . . . . . . . . . . . . . . . . . . Scanalyzers 21 | . . . 2 . . . 7 . . . . . . 7 . . . . . . . . . 2 3 . . . . Garrison Access 7 | . . . . . . . . . . . . . 2 . . . . . . . . . . . . . 1 . 4 Terminal Hacks 75 | . 4 1 1 1 2 . 2 1 2 1 . . . 2 . 1 17 . 5 . . 16 . 4 6 . 2 7 . Record 23 | . 1 . . . 1 . . . . . . . . . . 1 5 . . . . 14 . . 1 . . . . Part Schematic 4 | . . . . . . . . . . . . . . . . . 4 . . . . . . . . . . . . Robot Analysis 8 | . 2 . 1 . . . . . . . . . . . . . 4 . 1 . . . . . . . . . . Prototype ID Bank 4 | . . . . . . . . . . . . . . . . . 4 . . . . . . . . . . . . Open Door 12 | . . 1 . 1 . . . . 2 1 . . . . . . . . . . . 2 . 1 . . . 4 . Level Access Points 1 | . . . . . . . . . . . . . . . . . . . . . . . . . . . . 1 . Branch Access Points 6 | . 1 . . . . . 1 1 . . . . . 1 . . . . 1 . . . . 1 . . . . . Machine Index 2 | . . . . . . . . . . . . . . . . . . . . . . . . 1 1 . . . . Terminal Index 4 | . . . . . . . . . . . . . . 1 . . . . 1 . . . . . . . 1 1 . Fabricator Index 1 | . . . . . . . . . . . . . . . . . . . 1 . . . . . . . . . . Scanalyzer Index 1 | . . . . . . . 1 . . . . . . . . . . . . . . . . . . . . . . Alert Level 2 | . . . . . . . . . . . . . . . . . . . 1 . . . . 1 . . . . . Recall Reinforcements 1 | . . . . . . . . . . . . . . . . . . . . . . . . . 1 . . . . Hauler Manifests 1 | . . . . . . . . . . . . . . . . . . . . . . . . . 1 . . . . Registered Components 1 | . . . . . . . . . . . . . . . . . . . . . . . . . 1 . . . . Zone Layout 3 | . . . . . . . . . . . . . . . . . . . . . . . . . 1 . 1 1 . EX-Prototype ID Bank 1 | . . . . . 1 . . . . . . . . . . . . . . . . . . . . . . . . Fabricator Hacks 9 | . . . . . . . . . . . . . . . . . . . 6 . . . . . . . 3 . . Load Schematic 4 | . . . . . . . . . . . . . . . . . . . 2 . . . . . . . 2 . . Build 5 | . . . . . . . . . . . . . . . . . . . 4 . . . . . . . 1 . . Repair Station Hacks 12 | . . . . . . . 2 . . . . . . . . . . . 6 . . . . . 4 . . . . Scan Component 6 | . . . . . . . 1 . . . . . . . . . . . 3 . . . . . 2 . . . . Repair 6 | . . . . . . . 1 . . . . . . . . . . . 3 . . . . . 2 . . . . Recycling Unit Hacks . | . . . . . . . . . . . . . . . . . . . . . . . . . . . . . . Scanalyzer 18 | . . . 2 . . . 6 . . . . . . 6 . . . . . . . . . 1 3 . . . . Insert Component 11 | . . . 1 . . . 3 . . . . . . 3 . . . . . . . . . 1 3 . . . . Analyze 7 | . . . 1 . . . 3 . . . . . . 3 . . . . . . . . . . . . . . . Garrison Access Hacks 1 | . . . . . . . . . . . . . . . . . . . . . . . . . . . 1 . . Seal Access 1 | . . . . . . . . . . . . . . . . . . . . . . . . . . . 1 . . Unauthorized Hacks 21 | . 1 . 1 . . . . 1 . . . . . . . . . . 5 . . . . 3 4 . 4 2 . Terminals 20 | . 1 . 1 . . . . 1 . . . . . . . . . . 5 . . . . 2 4 . 4 2 . Track 8 | . 1 . . . . . . . . . . . . . . . . . 2 . . . . . 2 . 2 1 . Assimilate 1 | . . . . . . . . . . . . . . . . . . . . . . . . 1 . . . . . Botnet 10 | . . . . . . . . 1 . . . . . . . . . . 3 . . . . 1 2 . 2 1 . Disrupt 1 | . . . 1 . . . . . . . . . . . . . . . . . . . . . . . . . . Fabricators . | . . . . . . . . . . . . . . . . . . . . . . . . . . . . . . Repair Stations . | . . . . . . . . . . . . . . . . . . . . . . . . . . . . . . Recycling Units . | . . . . . . . . . . . . . . . . . . . . . . . . . . . . . . Scanalyzers 1 | . . . . . . . . . . . . . . . . . . . . . . . . 1 . . . . . Researchers 1 | . . . . . . . . . . . . . . . . . . . . . . . . 1 . . . . . Garrison Access . | . . . . . . . . . . . . . . . . . . . . . . . . . . . . . . Data Cores Recovered 2 | . 1 . . . . . . . . . . . . . . . . . . . . . . . . . 1 . . Used 1 | . 1 . . . . . . . . . . . . . . . . . . . . . . . . . . . . Hacking Detections 44 | . 3 . 3 . . . 5 2 . . . . 1 2 . . . . 4 . . . . 3 6 . 7 3 5 Full Trace Events 4 | . . . . . . . 1 . . . . . . 1 . . . . . . . . . . . . 1 . 1 Feedback Events 1 | . . . . . . . . . . . . . . . . . . . . . . . . . . . 1 . . Corruption 1 | . . . . . . . . . . . . . . . . . . . . . . . . . . . 1 . . Feedback Blocked . | . . . . . . . . . . . . . . . . . . . . . . . . . . . . . . Robot Schematics Acquired . | . . . . . . . . . . . . . . . . . . . . . . . . . . . . . . Robots Built . | . . . . . . . . . . . . . . . . . . . . . . . . . . . . . . Matter . | . . . . . . . . . . . . . . . . . . . . . . . . . . . . . . Time . | . . . . . . . . . . . . . . . . . . . . . . . . . . . . . . Total Robot Build Rating . | . . . . . . . . . . . . . . . . . . . . . . . . . . . . . . Part Schematics Acquired 10 | . . . 1 . . . 2 . . . . . . 3 . . 4 . . . . . . . . . . . . Parts Built 10 | . . . . . . . . . . . . . . . . . . . 8 . . . . . . . 2 . . Matter 1192 | . . . . . . . . . . . . . . . . . . . 936 . . . . . . . 256 . . Time 362 | . . . . . . . . . . . . . . . . . . . 234 . . . . . . . 128 . . Total Part Build Rating 72 | . . . . . . . . . . . . . . . . . . . 56 . . . . . . . 16 . . Parts Repaired 6 | . . . . . . . 1 . . . . . . . . . . . 3 . . . . . 2 . . . . Time 232 | . . . . . . . 26 . . . . . . . . . . . 162 . . . . . 44 . . . . Parts Recycled . | . . . . . . . . . . . . . . . . . . . . . . . . . . . . . . Recycled Matter . | . . . . . . . . . . . . . . . . . . . . . . . . . . . . . . Retrieved Matter . | . . . . . . . . . . . . . . . . . . . . . . . . . . . . . . Retrieved Components . | . . . . . . . . . . . . . . . . . . . . . . . . . . . . . . Parts Scanalyzed 6 | . . . 1 . . . 2 . . . . . . 3 . . . . . . . . . . . . . . . Part Schematics Acquired 6 | . . . 1 . . . 2 . . . . . . 3 . . . . . . . . . . . . . . . Parts Damaged . | . . . . . . . . . . . . . . . . . . . . . . . . . . . . . . Bothacking | -11 -10 -10 -9 -9 -9 -8 -8 -7 -7 -7 -7 -6 -6 -5 -5 -5 -5 -4 -4 -4 -4 -4 -3 -3 -3 -2 -2 -2 -1 ------------ Run | Scr Mat Min Mat Min Exi Min Mat Fac Low Low Zio Pro Fac Fac Upp Upp Zhi Pro Fac Upp Upp War Pro Res Qua Res Tes Sec Acc Used RIF Installer . | . . . . . . . . . . . . . . . . . . . . . . . . . . . . . . Robots Hacked . | . . . . . . . . . . . . . . . . . . . . . . . . . . . . . . Non-combat . | . . . . . . . . . . . . . . . . . . . . . . . . . . . . . . Combat . | . . . . . . . . . . . . . . . . . . . . . . . . . . . . . . Robot Hacks Applied . | . . . . . . . . . . . . . . . . . . . . . . . . . . . . . . Relay Couplers Released 5 | . . . . . . . . . . . . . . . . . . . . . . . . . . 3 . . 2 Machine Destruction 2 | . . . . . . . . . . . . . . . . . . . . . . . . . . . . . 2 Programmers 3 | . . . . . . . . . . . . . . . . . . . . . . . . . . 3 . . . Robots Rewired . | . . . . . . . . . . . . . . . . . . . . . . . . . . . . . . Allies Hacked . | . . . . . . . . . . . . . . . . . . . . . . . . . . . . . . Hacks Repelled . | . . . . . . . . . . . . . . . . . . . . . . . . . . . . . . Allies | -11 -10 -10 -9 -9 -9 -8 -8 -7 -7 -7 -7 -6 -6 -5 -5 -5 -5 -4 -4 -4 -4 -4 -3 -3 -3 -2 -2 -2 -1 -------- Run | Scr Mat Min Mat Min Exi Min Mat Fac Low Low Zio Pro Fac Fac Upp Upp Zhi Pro Fac Upp Upp War Pro Res Qua Res Tes Sec Acc Total Allies 1 | . . . . . . . . . . . . . . . . . . . . . . . . 1 . . . . . Largest Group 1 | . . . . . . . . . . . . . . . . . . . . . . . . 1 . . . . . Highest-Rated Group 44 | . . . . . . . . . . . . . . . . . . . . . . . . 44 . . . . . Highest-Rated Ally 44 | . . . . . . . . . . . . . . . . . . . . . . . . 44 . . . . . Total Orders 1 | . . . . . . . . . . . . . . 1 . . . . . . . . . . . . . . . RETURN 1 | . . . . . . . . . . . . . . 1 . . . . . . . . . . . . . . . Ally Attacks 24 | . . . . . 24 . . . . . . . . . . . . . . . . . . . . . . . . Total Damage 1104 | . . . . . 1104 . . . . . . . . . . . . . . . . . . . . . . . . Kills 1 | . . . . . 1 . . . . . . . . . . . . . . . . . . . . . . . . Allies Corrupted . | . . . . . . . . . . . . . . . . . . . . . . . . . . . . . . Allies Melted . | . . . . . . . . . . . . . . . . . . . . . . . . . . . . . . Turrets Deployed 3 | . . . . . 3 . . . . . . . . . . . . . . . . . . . . . . . . Intel | -11 -10 -10 -9 -9 -9 -8 -8 -7 -7 -7 -7 -6 -6 -5 -5 -5 -5 -4 -4 -4 -4 -4 -3 -3 -3 -2 -2 -2 -1 ------- Run | Scr Mat Min Mat Min Exi Min Mat Fac Low Low Zio Pro Fac Fac Upp Upp Zhi Pro Fac Upp Upp War Pro Res Qua Res Tes Sec Acc Robot Analysis Total 8 | . 2 . 1 . . . . . . . . . . . . . 4 . 1 . . . . . . . . . . Derelict Logs Recovered 11 | . . 1 . 1 . . . . 1 . 2 2 . . 2 1 . . . 1 . . . . . . . . . Drone Launches 17 | . . . . . . . . . . . . . . 1 . . . . . . . . . . 16 . . . . Drone Recoveries 1 | . . . . . . . . . . . . . . 1 . . . . . . . . . . . . . . . Exploration | -11 -10 -10 -9 -9 -9 -8 -8 -7 -7 -7 -7 -6 -6 -5 -5 -5 -5 -4 -4 -4 -4 -4 -3 -3 -3 -2 -2 -2 -1 ------------- Run | Scr Mat Min Mat Min Exi Min Mat Fac Low Low Zio Pro Fac Fac Upp Upp Zhi Pro Fac Upp Upp War Pro Res Qua Res Tes Sec Acc Turns Passed 24215 | . 800 991 1521 1450 1402 401 1222 376 4233 993 1942 204 230 563 405 560 149 474 445 371 302 463 133 423 718 774 1011 459 1200 Spaces Moved 16670 | 1 406 527 631 548 686 172 494 185 1901 402 1015 232 274 596 476 267 196 509 534 478 408 660 204 526 854 471 1126 1130 761 Core 512 | . . . . . . . . . . . . . . . . . . . . . . . . . . . . 186 326 Treads 7533 | . 368 527 631 548 686 172 494 185 1901 402 964 . . . . . . . . . . . . . . 219 220 . 216 Legs 39 | 1 38 . . . . . . . . . . . . . . . . . . . . . . . . . . . . Wheels 219 | . . . . . . . . . . . . . . . . . . . . . . . . . . . . . 219 Hover 6860 | . . . . . . . . . . . 51 232 274 596 476 267 196 509 534 478 408 660 204 526 854 252 343 . . Flight 1507 | . . . . . . . . . . . . . . . . . . . . . . . . . . . 563 944 . Fastest Speed 34 | 120 120 180 180 172 165 165 165 183 180 180 72 72 68 64 64 64 64 64 64 64 64 58 64 60 60 58 34 34 50 Average Speed 114 | 120 167 180 190 190 170 165 177 183 182 180 176 77 68 66 67 84 64 64 64 64 64 63 64 60 64 109 61 36 107 Slowest Speed 290 | 120 180 200 200 200 172 165 183 183 185 180 290 142 68 290 68 138 64 64 138 64 64 64 64 64 220 160 280 50 190 Overloaded Moves . | . . . . . . . . . . . . . . . . . . . . . . . . . . . . . . Propulsion Burnouts . | . . . . . . . . . . . . . . . . . . . . . . . . . . . . . . Robots Hopped 27 | . . . . . 1 . . . . . . . . . . . . . . . . . . . . . 9 17 . Cave-ins Triggered . | . . . . . . . . . . . . . . . . . . . . . . . . . . . . . . Teleports 1 | . . . . . . . . . . . . . . . . . . . . . . . . 1 . . . . . Exploration Rate (%) 53 | 2 68 98 62 77 86 54 43 7 98 51 82 38 5 12 69 58 62 54 11 61 61 72 45 27 86 19 83 86 24 Regions Visited 29 Branch Regions 19 Pre-discovered Areas 11 | . . 1 . . 1 . . . . . 1 1 . . 2 . 3 . . . . 2 . . . . . . . Known Exits Taken 7 | . 1 . . . . . . 1 . . . . . 1 . . . . 1 . . . . 1 . 1 . 1 . Unknown Exits Taken 22 | 1 . 1 1 1 1 1 1 . 1 1 1 1 1 . 1 1 1 1 . 1 1 1 1 . 1 . 1 . . Scrap Searched 27 | . . 2 . . . 1 . . 4 1 3 1 . . 3 3 . 1 . 3 4 . 1 . . . . . . Spaces Dug 190 | . . . . . . . . . 24 . . . . . . . . . 1 32 36 . . 66 31 . . . . Terrain Destroyed 724 | . 28 11 76 76 22 . 28 1 85 3 1 . 4 6 19 1 . 49 1 84 38 . . 92 31 . . . 68 Melee 7 | . . . . . . . . . 1 . . . . . . . . . . . . . . . 6 . . . . Projectile 73 | . . . . . . . . 1 . 3 1 . . 6 . 1 . 6 1 15 2 . . 8 . . . . 29 AOE 644 | . 28 11 76 76 22 . 28 . 84 . . . 4 . 19 . . 43 . 69 36 . . 84 25 . . . 39 Terrain Rammed . | . . . . . . . . . . . . . . . . . . . . . . . . . . . . . . Walls Destroyed . | . . . . . . . . . . . . . . . . . . . . . . . . . . . . . . Machines Disabled . | . . . . . . . . . . . . . . . . . . . . . . . . . . . . . . Actions | -11 -10 -10 -9 -9 -9 -8 -8 -7 -7 -7 -7 -6 -6 -5 -5 -5 -5 -4 -4 -4 -4 -4 -3 -3 -3 -2 -2 -2 -1 --------- Run | Scr Mat Min Mat Min Exi Min Mat Fac Low Low Zio Pro Fac Fac Upp Upp Zhi Pro Fac Upp Upp War Pro Res Qua Res Tes Sec Acc Total 20396 | . 480 557 806 876 828 227 673 201 2628 656 1147 245 296 693 524 589 215 634 626 516 431 701 205 597 977 611 1345 1152 960 Wait 2049 | . 8 2 12 263 46 16 41 . 665 235 28 5 1 25 11 312 . 103 40 12 5 . . 7 57 49 60 7 39 Move 16590 | . 405 526 630 547 683 171 493 184 1900 401 1014 231 273 595 475 266 195 508 533 477 407 659 203 525 853 470 1108 1098 760 Hop 23 | . . . . . 1 . . . . . . . . . . . . . . . . . . . . . 8 14 . Pick Up 232 | . 18 5 27 6 16 2 20 3 9 7 24 1 4 9 8 1 4 3 19 1 2 7 . 5 7 2 14 4 4 Fast Attach 173 | . 5 1 4 3 2 . 7 . 2 . 8 . . 3 . . 4 . 6 2 1 11 . 10 11 15 31 7 40 Attach 161 | . 2 2 4 5 8 1 5 2 16 1 16 1 4 12 6 2 1 4 3 2 1 5 1 13 9 6 15 6 8 Detach 42 | . . . 1 . 1 . 1 . 1 . 4 1 . 3 1 . . 1 . 1 1 . . 4 3 3 10 2 4 Swap 94 | . 4 3 16 5 2 2 10 . 4 3 6 . . 4 2 3 3 . 6 4 2 . 1 3 1 1 4 2 3 Drop 240 | . 9 7 23 4 16 3 12 1 3 . 32 . 1 6 1 . 5 3 10 4 2 17 . 6 15 9 31 6 14 Fire 648 | . 28 9 88 42 53 31 82 11 27 9 15 6 12 36 20 5 3 12 9 13 10 2 . 21 1 . 17 1 85 Melee 125 | . . . . . . . . . 1 . . . . . . . . . . . . . . 3 20 56 45 . . Ram 8 | . . . . . . . . . . . . . . . . . . . . . . . . . . . . 5 3 Kick . | . . . . . . . . . . . . . . . . . . . . . . . . . . . . . . Crush 8 | . 1 2 1 1 . 1 2 . . . . . . . . . . . . . . . . . . . . . . Escape Stasis 2 | . . . . . . . . . . . . . . . . . . . . . . . . . . . 2 . . Rewire 1 | . . . . . . . . . . . . . 1 . . . . . . . . . . . . . . . . Trap . | . . . . . . . . . . . . . . . . . . . . . . . . . . . . . . Miscellaneous . | . . . . . . . . . . . . . . . . . . . . . . . . . . . . . . Route ------- -11/Scrapyard -10/Materials (discovered 4 exits: *Mat x2 / *Min x2) -10/Mines (discovered 2 exits: *Mat x2) -9/Materials (discovered 3 exits: *Mat x2 / *Min) -9/Mines (discovered 2 exits: *Mat / *Exi) -9/Exiles -8/Mines -8/Materials -7/Factory (discovered 2 exits: *Low x2) -7/Lower Caves -7/Lower Caves (discovered 2 exits: Fac / *Zio) -7/Zion -6/Proximity Caves -6/Factory (discovered 2 exits: *Fac / Low) -5/Factory (discovered 2 exits: *Upp x2) -5/Upper Caves -5/Upper Caves -5/Zhirov -4/Proximity Caves -4/Factory (discovered 5 exits: *Upp x2 / Ext x2 / Arm) -4/Upper Caves -4/Upper Caves -4/Warlord -3/Proximity Caves -3/Research (discovered 3 exits: [*Res] / *Qua x2) -3/Quarantine -2/Research -2/Testing (discovered 2 exits: *Acc / *Sec) -2/Section 7 -1/Access To Epsilon Eridani History --------- Turn | Location | Event 1 | -11/Scrapyard | Discovered new exit (range 0) 1 | -11/Scrapyard | Entered Materials 25 | -10/Materials | Discovered new exit (range 16) 309 | -10/Materials | Build established: Mutant 389 | -10/Materials | Identified exit to Mines 420 | -10/Materials | Discovered new exit (range 12) 693 | -10/Materials | Discovered new exit (range 10) 801 | -10/Materials | Entered Mines 812 | -10/Mines | Learned location of Recycling (-9) 907 | -10/Mines | Discovered new exit (range 13) 1005 | -10/Mines | Received a Rocket Launcher from a helpful Derelict 1108 | -10/Mines | Found the Drone Emporium 1122 | -10/Mines | Found Prototype Device 1563 | -10/Mines | Discovered new exit (range 12) 1792 | -10/Mines | Entered Materials 1792 | -9/Materials | Evolved 2 slots: Utility x2 1792 | -9/Materials | Identified Decoy Drone Bay 2205 | -9/Materials | Discovered new exit (range 10) 2262 | -9/Materials | Build established: Hauler-Mutant 2544 | -9/Materials | Discovered new exit (range 16) 2755 | -9/Materials | Destroyed 7 combat bots 3064 | -9/Materials | Discovered new exit (range 7) 3313 | -9/Materials | Entered Mines 3341 | -9/Mines | Learned Materials terminal intel 3611 | -9/Mines | Assembled infested the area 3616 | -9/Mines | Assisted by a Guerilla fighting off Assembled 3653 | -9/Mines | Destroyed 19 combat bots 3744 | -9/Mines | A weapon hastily lodged in a ceiling crevice suddenly fell to the ground 3766 | -9/Mines | Deemed a non-threat by the Exiles lab entrance 3766 | -9/Mines | Discovered new exit (range 5) 4143 | -9/Mines | Discovered new exit (range 10) 4188 | -9/Mines | Met a Derelict shopkeep closing up shop 4420 | -9/Mines | Core integrity fell below 50% 4470 | -9/Mines | Lost 7 parts (1p3n2u1w) 4763 | -9/Mines | Entered Exiles 4810 | -9/Exiles | Met 8R-AWN 4983 | -9/Exiles | Met EX-HEX 5082 | -9/Exiles | Met EX-DEC 5132 | -9/Exiles | Learned location of Zion (-7) 5208 | -9/Exiles | Discovered new exit (range 15) 5289 | -9/Exiles | Met EX-BIN 5315 | -9/Exiles | Aligned with FarCom system 5317 | -9/Exiles | Given EX-Vault access code 5356 | -9/Exiles | Opened EX-Vault 5373 | -9/Exiles | Found Deploy-a-Sentry 5375 | -9/Exiles | Found Deploy-a-Sentry 5379 | -9/Exiles | Found Deploy-a-Sentry 5416 | -9/Exiles | Warned to stay clear of 0b10 Research branches 5537 | -9/Exiles | Attacked by the Exiles 5590 | -9/Exiles | Destroyed 7 combat bots 5592 | -9/Exiles | DAS Turret deployed 5636 | -9/Exiles | DAS Turret deployed 5664 | -9/Exiles | Allies destroyed 8R-AWN 5699 | -9/Exiles | DAS Turret deployed 5878 | -9/Exiles | Destroyed EX-HEX 5895 | -9/Exiles | Destroyed EX-BIN 5931 | -9/Exiles | Destroyed EX-DEC 5955 | -9/Exiles | Found Prototype Energy Gun 5994 | -9/Exiles | Found Prototype Device 5994 | -9/Exiles | Identified System Purifier 6165 | -9/Exiles | Entered Mines 6500 | -8/Mines | Core integrity fell below 20% 6534 | -8/Mines | Discovered new exit (range 9) 6566 | -8/Mines | Entered Materials 6566 | -8/Materials | Evolved 2 slots: Propulsion x1, Utility x1 6567 | -8/Materials | Loaded intel: 12 terminal locations 6892 | -8/Materials | Repaired Hcp. Storage Unit 7549 | -8/Materials | Discovered new exit (range 15) 7698 | -8/Materials | Build established: Scavenger-Mutant 7788 | -8/Materials | Entered Factory 7788 | -7/Factory | Evolved 2 slots: Utility x1, Weapon x1 7963 | -7/Factory | Discovered new exit (range 14) 8040 | -7/Factory | Identified exit to Lower Caves 8126 | -7/Factory | Garrison activated, responded to threat 8164 | -7/Factory | Entered Lower Caves 8310 | -7/Lower Caves | Build established: Scavenger-Tank 8527 | -7/Lower Caves | Attracted the attention of an 0b10 outpost 8565 | -7/Lower Caves | Identified AWS/EX-DEC 8590 | -7/Lower Caves | Lost 10 parts (1p3n3u3w) 8906 | -7/Lower Caves | Build established: Scavenger-Mutant 9253 | -7/Lower Caves | Build established: Hauler-Mutant 9660 | -7/Lower Caves | Learned Factory security intel 10715 | -7/Lower Caves | Discovered new exit (range 12) 10727 | -7/Lower Caves | Attracted the attention of an 0b10 checkpoint 12064 | -7/Lower Caves | Found Alien Artifact 12064 | -7/Lower Caves | Identified Core Expander 12064 | -7/Lower Caves | Installed Core Expander, added new Weapon slot 12364 | -7/Lower Caves | Build established: Scavenger-Mutant 12397 | -7/Lower Caves | Entered another Lower Caves area 12398 | -7/Lower Caves | Encountered a Warlord checkpoint 12426 | -7/Lower Caves | Discovered new exit (range 18) 13018 | -7/Lower Caves | Build established: Scavenger-Skirmisher 13258 | -7/Lower Caves | Discovered new exit (range 10) 13390 | -7/Lower Caves | Entered Zion 13497 | -7/Zion | Found Prototype Processor 13497 | -7/Zion | Identified Exp. Signal Interpreter 13501 | -7/Zion | Found Prototype Processor 13501 | -7/Zion | Identified Exp. Targeting Computer 13507 | -7/Zion | Found Prototype Processor 13507 | -7/Zion | Identified Exp. Core Analyzer 13517 | -7/Zion | Found Prototype Hackware 13636 | -7/Zion | Given A8's code to call for help 13737 | -7/Zion | System corruption cleaned by Quarantine Array 13774 | -7/Zion | Build established: Scavenger-Gunner 14050 | -7/Zion | Given the Hacking Drone Bay 14059 | -7/Zion | Found Prototype Device 14163 | -7/Zion | Found Prototype Device 14263 | -7/Zion | Learned Factory repair station intel 14385 | -7/Zion | Learned Factory security intel 14568 | -7/Zion | Received a visual enhancement algorithm 14829 | -7/Zion | Found Prototype Device 15000 | -7/Zion | Discovered new exit (range 12) 15119 | -7/Zion | Attacked by Zionites 15135 | -7/Zion | Identified Mobile Refinery Mk. CCLXVII 15169 | -7/Zion | 99-TNT came to Zion's defense 15197 | -7/Zion | Core integrity fell below 50% 15210 | -7/Zion | Destroyed 99-TNT 15219 | -7/Zion | Lost 5 parts (1n1u3w) 15227 | -7/Zion | Found Prototype Launcher 15248 | -7/Zion | Identified Hacking Drone Bay 15249 | -7/Zion | Identified Phasing AFG 15269 | -7/Zion | Identified 99-TNT's Nukerbomber 15314 | -7/Zion | Found Hvy. Reactive Plating 15332 | -7/Zion | Entered Proximity Caves 15332 | -6/Proximity Caves | Spotted B-75 Beast 15460 | -6/Proximity Caves | Learned 8 Factory zone layouts 15526 | -6/Proximity Caves | Discovered new exit (range 14) 15536 | -6/Proximity Caves | Entered Factory 15536 | -6/Factory | Evolved 2 slots: Propulsion x1, Utility x1 15537 | -6/Factory | Identified exit to Lower Caves 15539 | -6/Factory | Loaded intel: 6 repair station locations 15596 | -6/Factory | Discovered new exit (range 15) 15766 | -6/Factory | Entered another Factory area 15766 | -5/Factory | Evolved 2 slots: Propulsion x1, Utility x1 15821 | -5/Factory | Discovered new exit (range 9) 16029 | -5/Factory | Identified Exp. System Shield 16031 | -5/Factory | Identified exit to Upper Caves 16203 | -5/Factory | Destroyed 7 combat bots 16329 | -5/Factory | Entered Upper Caves 16388 | -5/Upper Caves | Lost 4 parts (1u3w) 16640 | -5/Upper Caves | Build established: Scavenger-Mutant 16663 | -5/Upper Caves | Attracted the attention of an 0b10 checkpoint 16688 | -5/Upper Caves | Learned location of Armory (-4) 16715 | -5/Upper Caves | Discovered new exit (range 13) 16734 | -5/Upper Caves | Entered another Upper Caves area 16760 | -5/Upper Caves | Encountered a Warlord checkpoint 17229 | -5/Upper Caves | Learned Factory terminal intel 17290 | -5/Upper Caves | Discovered new exit (range 5) 17294 | -5/Upper Caves | Entered Zhirov 17294 | -5/Zhirov | Discovered new exit (range 3) 17306 | -5/Zhirov | Met Zhirov 17322 | -5/Zhirov | Found Alien Artifact 17322 | -5/Zhirov | Identified Integrated Dissipator 17322 | -5/Zhirov | Installed Integrated Dissipator, increased core heat dissipation (+20) 17369 | -5/Zhirov | Learned location of Quarantine (-3) 17369 | -5/Zhirov | Learned location of Testing (-2) 17369 | -5/Zhirov | Learned location of Command (-1) 17380 | -5/Zhirov | Zhirov requested help retrieving the SGEMP Prototype 17391 | -5/Zhirov | Found Alien Artifact 17443 | -5/Zhirov | Entered Proximity Caves 17454 | -4/Proximity Caves | Attracted the attention of an 0b10 checkpoint 17776 | -4/Proximity Caves | Build established: Scavenger-Gunner 17908 | -4/Proximity Caves | Discovered new exit (range 14) 17917 | -4/Proximity Caves | Entered Factory 17917 | -4/Factory | Evolved 2 slots: Power x1, Utility x1 17918 | -4/Factory | Loaded intel: 22 terminal locations 18038 | -4/Factory | Fabricated Cmb. Gravmag System (x2) 18093 | -4/Factory | Fabricated Cmb. Gravmag System (x2) 18127 | -4/Factory | Repaired Cmb. Antigrav System 18155 | -4/Factory | Repaired Hcp. Storage Unit 18159 | -4/Factory | Fabricated Cmb. Antigrav System? 18210 | -4/Factory | Local fabrication network quarantined 18233 | -4/Factory | Repaired Cmb. Antigrav System 18244 | -4/Factory | Fabricated Cmb. Antigrav System (x2) 18305 | -4/Factory | Identified exit to Upper Caves 18305 | -4/Factory | Identified exit to Extension 18305 | -4/Factory | Identified exit to Armory 18362 | -4/Factory | Entered Upper Caves 18642 | -4/Upper Caves | Build established: Hacker-Gunner 18673 | -4/Upper Caves | Attracted the attention of an 0b10 outpost 18718 | -4/Upper Caves | Attacked by a delusional Derelict stockpiling Unaware 18723 | -4/Upper Caves | Discovered new exit (range 12) 18733 | -4/Upper Caves | Entered another Upper Caves area 18752 | -4/Upper Caves | Lost 3 parts (3w) 18978 | -4/Upper Caves | Discovered new exit (range 10) 18993 | -4/Upper Caves | Build established: Hacker-Mutant 19035 | -4/Upper Caves | Entered Warlord 19229 | -4/Warlord | Learned Armory trap positions 19230 | -4/Warlord | Learned 4 Armory zone layouts 19230 | -4/Warlord | Learned 4 Research zone layouts 19288 | -4/Warlord | Visited the Vortex Lab 19290 | -4/Warlord | Found Prototype Energy Gun 19290 | -4/Warlord | Identified Vortex Rail 19292 | -4/Warlord | Found Vortex Rail 19297 | -4/Warlord | Found Prototype Energy Gun 19297 | -4/Warlord | Identified Vortex Shotgun 19300 | -4/Warlord | Found Vortex Shotgun 19307 | -4/Warlord | Warlord's base attacked by MAIN.C 19331 | -4/Warlord | Met Warlord 19355 | -4/Warlord | Found Prototype Device 19355 | -4/Warlord | Identified Exp. Phase Shifter 19362 | -4/Warlord | Found Prototype Device 19362 | -4/Warlord | Identified Thermal Barrier 19365 | -4/Warlord | Found Prototype Processor 19365 | -4/Warlord | Identified Exp. Armor Integrity Analyzer 19379 | -4/Warlord | Found Prototype Reactor 19379 | -4/Warlord | Identified Vortex Chain Reactor 19393 | -4/Warlord | Found Prototype Hackware 19481 | -4/Warlord | Opened side exit 19493 | -4/Warlord | Discovered new exit (range 10) 19498 | -4/Warlord | Entered Proximity Caves 19550 | -3/Proximity Caves | Attracted the attention of an 0b10 outpost 19553 | -3/Proximity Caves | Attracted the attention of an 0b10 checkpoint 19627 | -3/Proximity Caves | Discovered new exit (range 7) 19631 | -3/Proximity Caves | Entered Research 19631 | -3/Research | Evolved 2 slots: Propulsion x1, Utility x1 19711 | -3/Research | Identified System Mapper 19713 | -3/Research | Identified exit to Quarantine 19756 | -3/Research | Identified Transdimensional Reconstructor 19772 | -3/Research | Spotted B-86 Titan 19883 | -3/Research | Garrison activated, responded to threat 19901 | -3/Research | Warped through subspace 19927 | -3/Research | Lost 4 parts (1p1n1u1w) 19927 | -3/Research | Discovered new exit (range 6) 20054 | -3/Research | Entered Quarantine 20062 | -3/Quarantine | Found Alien Artifact 20107 | -3/Quarantine | Build established: Wizard-Mutant 20153 | -3/Quarantine | Found Alien Artifact 20173 | -3/Quarantine | Found Alien Artifact 20233 | -3/Quarantine | Repaired Cmb. Antigrav System 20247 | -3/Quarantine | Cryocooling Duct disabled 20262 | -3/Quarantine | Ambient heat levels rising (+20) 20262 | -3/Quarantine | Non-combat units ordered to evacuate 20263 | -3/Quarantine | Cryocooling Duct disabled 20278 | -3/Quarantine | Ambient heat levels rising (+20) 20278 | -3/Quarantine | Combat units ordered to evacuate 20327 | -3/Quarantine | Identified Subatomic Replicator 20327 | -3/Quarantine | Identified Phase Redirector 20327 | -3/Quarantine | Identified Core Reset Matrix 20378 | -3/Quarantine | Quarantine Guard activated 20407 | -3/Quarantine | Lost 5 parts (1p3n1u) 20438 | -3/Quarantine | Found Alien Slashing Weapon 20438 | -3/Quarantine | Identified Sigix Broadsword 20497 | -3/Quarantine | Spotted Quarantine Guard 20497 | -3/Quarantine | Spotted Quarantine Guard 20523 | -3/Quarantine | Spotted Quarantine Guard 20523 | -3/Quarantine | Spotted Quarantine Guard 20538 | -3/Quarantine | Spotted Quarantine Guard 20555 | -3/Quarantine | Spotted Quarantine Guard 20578 | -3/Quarantine | Spotted Quarantine Guard 20586 | -3/Quarantine | Spotted Quarantine Guard 20593 | -3/Quarantine | Spotted Quarantine Guard 20601 | -3/Quarantine | Spotted Quarantine Guard 20603 | -3/Quarantine | Found Alien Energy Cannon 20607 | -3/Quarantine | Discovered new exit (range 6) 20618 | -3/Quarantine | Build established: Hacker-Mutant 20638 | -3/Quarantine | Lost 3 parts (3u) 20666 | -3/Quarantine | Repaired Cmb. Antigrav System? 20718 | -3/Quarantine | Identified Core Cannon 20719 | -3/Quarantine | Core integrity fell below 50% 20731 | -3/Quarantine | Spotted Quarantine Guard 20755 | -3/Quarantine | Lost 9 parts (2p4n3u) 20772 | -3/Quarantine | Entered Research 20772 | -2/Research | Warlord forces began assault on 0b10 20772 | -2/Research | Evolved 2 slots: Utility x2 20773 | -2/Research | Identified exit to Testing 20882 | -2/Research | Research machine network offline 20885 | -2/Research | Spotted B-90 Cyclops 20983 | -2/Research | Used Subatomic Replicator to replicate Sigix Broadsword 21118 | -2/Research | Spotted Striker 21145 | -2/Research | Destroyed Striker 21200 | -2/Research | Spotted B-90 Cyclops 21245 | -2/Research | Borebot progress halted 21330 | -2/Research | Spotted Striker 21330 | -2/Research | Spotted Executioner 21334 | -2/Research | Destroyed Striker 21345 | -2/Research | System corruption reached 10% 21410 | -2/Research | Borebot progress halted 21546 | -2/Research | Entered Testing 21578 | -2/Testing | Garrison activated, responded to threat 21612 | -2/Testing | Found Prototype Launcher 21646 | -2/Testing | Found Quantum Capacitor 21667 | -2/Testing | Build established: Scavenger-Mutant 21906 | -2/Testing | Fabricated Cmb. Antigrav System? 21926 | -2/Testing | Spotted Striker 21927 | -2/Testing | Spotted Striker 22146 | -2/Testing | Spotted Alpha 7 22147 | -2/Testing | Destroyed Striker 22151 | -2/Testing | Destroyed Striker 22185 | -2/Testing | Destroyed Alpha 7 22196 | -2/Testing | Lost 3 parts (1p2w) 22344 | -2/Testing | Found Prototype Energy Cannon 22344 | -2/Testing | Identified Imp. Potential Cannon 22347 | -2/Testing | Found Prototype Energy Cannon 22347 | -2/Testing | Identified Potential Cannon 22366 | -2/Testing | Spotted Alpha 7 22370 | -2/Testing | Discovered new exit (range 10) 22402 | -2/Testing | Found Prototype Ballistic Cannon 22402 | -2/Testing | Identified Omega Cannon 22442 | -2/Testing | Found Prototype Processor 22442 | -2/Testing | Identified Exp. Melee Analysis Suite 22444 | -2/Testing | Found Exp. Melee Analysis Suite 22446 | -2/Testing | Found Exp. Melee Analysis Suite 22448 | -2/Testing | Found Prototype Slashing Weapon 22448 | -2/Testing | Identified Particle Cleaver 22521 | -2/Testing | Spotted PH-EFBZXSQZ8F 22532 | -2/Testing | Spotted Fortress 22556 | -2/Testing | Discovered new exit (range 5) 22557 | -2/Testing | Entered Section 7 22576 | -2/Section 7 | Identified exit to Access 22591 | -2/Section 7 | Spotted B-90 Cyclops 22614 | -2/Section 7 | Spotted S7 Guard 22754 | -2/Section 7 | Spotted B-99 Colossus 22776 | -2/Section 7 | Found Alien Artifact 22776 | -2/Section 7 | Identified LRC Armor 22776 | -2/Section 7 | Installed LRC Armor, increased core integrity (+250) 22779 | -2/Section 7 | Found Alien Artifact 22779 | -2/Section 7 | Identified LRC Matter Compressor 22779 | -2/Section 7 | Installed LRC Matter Compressor, increased matter storage capacity (+125) 22781 | -2/Section 7 | Found LRC Matter Compressor 22781 | -2/Section 7 | Installed LRC Matter Compressor, increased matter storage capacity (+125) 22793 | -2/Section 7 | Spotted Alpha 7 22793 | -2/Section 7 | Spotted Alpha 7 22796 | -2/Section 7 | Identified Z-bomb Delivery System 22842 | -2/Section 7 | First assault squad dispatched 22847 | -2/Section 7 | Spotted Executioner 22851 | -2/Section 7 | Found Alien Artifact 22852 | -2/Section 7 | Found Alien Artifact 22854 | -2/Section 7 | Found Alien Artifact 22858 | -2/Section 7 | Identified Terrabomb (x3) 22858 | -2/Section 7 | Used Terrabomb 22858 | -2/Section 7 | Spotted Executioner 22870 | -2/Section 7 | Spotted Striker 22870 | -2/Section 7 | Spotted Striker 22928 | -2/Section 7 | Core integrity fell below 50% 22950 | -2/Section 7 | Lost 9 parts (2p3n4u) 22986 | -2/Section 7 | Used Terrabomb 22993 | -2/Section 7 | Found Prototype Processor 22993 | -2/Section 7 | Identified Spectral Analyzer 23015 | -2/Section 7 | Core integrity fell below 20% 23016 | -2/Section 7 | Entered Access 23016 | -1/Access | Evolved 2 slots: Power x2 23317 | -1/Access | Garrison activated, responded to threat 23412 | -1/Access | Lost 4 parts (1p1n2u) 23445 | -1/Access | System corruption reached 10% 23634 | -1/Access | Garrison activated, responded to threat 23742 | -1/Access | Lost 3 parts (1n2w) 24016 | -1/Access | First assault squad dispatched 24028 | -1/Access | Energy Cycler disabled 24094 | -1/Access | Destroyed 10 combat bots 24106 | -1/Access | Lost 10 parts (3p3n2u2w) 24139 | -1/Access | Core integrity fell below 50% 24172 | -1/Access | Lost 7 parts (3n4u) 24213 | -1/Access | Discovered new exit (range 6) 24216 | *** | Escaped! Last Messages --------------- 24144_ K-01 Serf collects debris. 24151_ Acquired 3 matter. 24151_ K-01 Serf collects debris. 24153_ U-05 Engineer lays Concrete. 24155_ K-01 Serf collects debris. 24158_ U-05 Engineer builds a Wall. 24159_ Acquired 24 matter. 24159_ U-05 Engineer lays Concrete. 24160_ Acquired 48 matter. 24187_ System corrupted: Component data lost. 24198_ Acquired Adv. Hacking Suite. 24207_ K-01 Serf cleans the Terminal. 24212_ System corrupted: Heat flow error (+126). 24212_ Connecting with Terminal... 24212_ ALERT: Suspicious activity at Terminal A001. Dispatching Investigation squad. 24213_ The Access Shell folds into the floor. 24213_ EXIT=FOUND 24214_ K-01 Serf cleans the Terminal. 24216_ ALERT: Rogue bot located, Programmers report to Access Zone 6I. Map ----- +----------------------------------------------------+ | ??????????????????????????????+ + """ ? | | ??????????????????????????????# # """ ? | | ??????????????????????????????# #?? " + | | ??????????????????????????????# #???? # | | ??????????????????????????????+ #?????? # | | ??????????????????????????????# *#????????# | | ??????????????????????????????######## #????????? | | ?????????????????????????????????????# #????????? | | ?????????????????????????????????????# #????????? | | ?????????????????????????????????????# #????????? | | ?????????????######################### #????????? | | ????????????? R #????????? | | ????????????? k k +????????? | | ??????????????????### ""####### #????????? | | ????????????????????# ""#?????# #????????? | | ????????????????????# ""#?????# #????????? | | ????????????????????# T#?????# #????????? | | ????????????????????# ""#?????# #????????? | | ????????????????????# ""#?????# #????????? | | ???????????????????## ""##????# #????????? | | ???????????????????# #????# #????????? | | ???????????????????## ##????# #????????? | | ????????????????????# #?????# #????????? | | ????????????????????# #?????# /????????? | | ????????????????????# #?????? #????????? | | ????????????????????# @" #?????? ?????????? | | ????????????????????# "" #?????? ?????????? | | ????????????????????# #?????????????????? | | ????????????????????# #?????????????????? | | ????????????????????# #?????????????????? | | ????????????????????#""""""""""#?????????????????? | | ?????????????????????????????????????????????????? | | ?????????????????????????????????????????????????? | | ?????????????????????????????????????????????????? | | ?????????????????????????????????????????????????? | | ?????????????????????????????????????????????????? | | ?????????????????????????????????????????????????? | | ?????????????????????????????????????????????????? | | ?????????????????????????????????????????????????? | | ?????????????????????????????????????????????????? | | ?????????????????????????????????????????????????? | | ?????????????????????????????????????????????????? | | ?????????????????????????????????????????????????? | | ?????????????????????????????????????????????????? | | ?????????????????????????????????????????????????? | | ?????????????????????????????????????????????????? | | ?????????????????????????????????????????????????? | | ?????????????????????????????????????????????????? | | ?????????????????????????????????????????????????? | | ?????????????????????????????????????????????????? | +----------------------------------------------------+ Best States ------------- Heat Dissipation 159 Coolant Potential 400 Energy Generation 72 Energy Capacity 1040 Matter Stores 452 Matter Capacity 800 Sight Range 18 Terrain Scan Range 24 Terrain Scan Density 135 Armor Coverage 600 Resistance: KI 40 Resistance: TH 50 Resistance: EM 15 Propulsion Shielding 33 Utility Shielding 90 Weapon Shielding 90 Thermal Conversion 90 Melee Speed Boost 50 Evasion (%) 63 Melee Accuracy 36 Launcher Accuracy 20 Target Analysis 8 Core Analysis 10 Armor Integrity Analysis 90 Recoil Reduction 6 Salvage Targeting 1 Offensive Hacking 34 Defensive Hacking 30 Item Schematics ----------------- Hcp. Storage Unit | -9/Materials | Scanalyzed Cold Fusion Reactor | -8/Materials | Scanalyzed Cmb. Airjet | -8/Materials | Scanalyzed Cmb. Gravmag System | -5/Factory | Scanalyzed Cmb. Antigrav System | -5/Factory | Scanalyzed Exp. Weapon Shielding | -5/Factory | Scanalyzed Exp. Heat Sink | -5/Zhirov | Free Exp. Optical Array | -5/Zhirov | Free Assault Drone Bay | -5/Zhirov | Free Imp. Arc Thrower | -5/Zhirov | Free Robot Schematics ------------------ None Fabricated ------------ Cmb. Gravmag System | x2 | -4/Factory Cmb. Gravmag System | x2 | -4/Factory Cmb. Antigrav System | x2 | -4/Factory Cmb. Antigrav System | x2 | -4/Factory Cmb. Antigrav System | x2 | -2/Testing Alien Tech Used ----------------- Core Expander Integrated Dissipator Transdimensional Reconstructor Sigix Broadsword Core Cannon Subatomic Replicator LRC Armor LRC Matter Compressor Terrabomb Achievements -------------- None Challenges ------------ None Game ------ Seed AssembledCloakMegatreads Manual? 0 Play Time 03:16:04 Cumulative 279.8 hours Start 2021.01.27 @ 15:09:08 End 2021.01.27 @ 18:48:50 Sessions 1 Manual Loads 0 Difficulty Rogue Special Mode None Game No. 235 Rogue 228 Adventurer 0 Explorer 7 Win Type 0 Total 9 Types 3/0/6/0/0/0/0/0/0 Lore% 74 Gallery% 91 Achievement% 71 Wizard Run 0 Options --------- ASCII 0 Keyboard 0 Movement Numpad Keybinds 0 Fullscreen 1 Font 18/X11 Map View 76x50 Tactical HUD 1 Map Filters NONE Filters NONE Steam 1 RUN: a600a8c9-711e-4243-9fa9-06976a22e3b5